[Event "Early-Titled-Tuesday-Blitz-May-14-2024"]
[Site "Chess.com"]
[Date "2024.05.14"]
[Round "1"]
[White "urano56"]
[Black "Casablanca"]
[Result "1-0"]
[WhiteElo "2421"]
[BlackElo "2716"]
[TimeControl "180+1"]
[EndTime "8:08:45 PDT"]
[Termination "urano56 won by checkmate"]

1. e4 {[%clk 0:02:57.3]} 1... b6 {[%clk 0:02:58.5]} 2. d4 {[%clk 0:02:55]} 2...
Bb7 {[%clk 0:02:58.6]} 3. Nc3 {[%clk 0:02:55.1]} 3... e6 {[%clk 0:02:59]} 4. Bd3
{[%clk 0:02:54.9]} 4... Bb4 {[%clk 0:02:58.1]} 5. Ne2 {[%clk 0:02:54.7]} 5... d5
{[%clk 0:02:56.1]} 6. O-O {[%clk 0:02:53]} 6... dxe4 {[%clk 0:02:54.1]} 7. Nxe4
{[%clk 0:02:51.5]} 7... Nd7 {[%clk 0:02:51.8]} 8. c3 {[%clk 0:02:49.7]} 8... Be7
{[%clk 0:02:49.2]} 9. N2g3 {[%clk 0:02:47.7]} 9... Ngf6 {[%clk 0:02:48.3]} 10.
Qe2 {[%clk 0:02:47.1]} 10... O-O {[%clk 0:02:34.4]} 11. Rd1 {[%clk 0:02:38.6]}
11... Qc8 {[%clk 0:02:15.4]} 12. Nh5 {[%clk 0:02:34.5]} 12... Nxe4 {[%clk
0:02:12.2]} 13. Bxe4 {[%clk 0:02:29.9]} 13... Nf6 {[%clk 0:02:06.9]} 14. Bxb7
{[%clk 0:02:19.8]} 14... Qxb7 {[%clk 0:02:07.1]} 15. Bg5 {[%clk 0:02:19.5]}
15... Nd5 {[%clk 0:02:01.1]} 16. Bxe7 {[%clk 0:02:17.2]} 16... Nxe7 {[%clk
0:02:02]} 17. Qg4 {[%clk 0:02:15.9]} 17... Ng6 {[%clk 0:01:54.9]} 18. Rd3 {[%clk
0:02:12.1]} 18... Qd5 {[%clk 0:01:47.7]} 19. Rg3 {[%clk 0:01:55.3]} 19... c5
{[%clk 0:01:41.5]} 20. Nf4 {[%clk 0:01:45]} 20... Qe4 {[%clk 0:01:12.9]} 21.
Nxg6 {[%clk 0:01:37.5]} 21... Qxg6 {[%clk 0:01:13.8]} 22. dxc5 {[%clk
0:01:35.2]} 22... bxc5 {[%clk 0:01:00.4]} 23. Qf4 {[%clk 0:01:24]} 23... Qc2
{[%clk 0:00:54.7]} 24. Qh6 {[%clk 0:01:15.3]} 24... g6 {[%clk 0:00:54.8]} 25.
Rh3 {[%clk 0:01:14.1]} 25... Rfd8 {[%clk 0:00:55.5]} 26. Qxh7+ {[%clk 0:01:12]}
26... Kf8 {[%clk 0:00:56.2]} 27. Qh8+ {[%clk 0:01:09.6]} 27... Ke7 {[%clk
0:00:56.6]} 28. Qh4+ {[%clk 0:01:09.3]} 28... Ke8 {[%clk 0:00:56.6]} 29. Re1
{[%clk 0:00:43.4]} 29... Rd1 {[%clk 0:00:52.8]} 30. Re3 {[%clk 0:00:41.2]} 30...
Rad8 {[%clk 0:00:51.1]} 31. h3 {[%clk 0:00:37]} 31... Rxe1+ {[%clk 0:00:50.2]}
32. Rxe1 {[%clk 0:00:37.9]} 32... Rd2 {[%clk 0:00:38.1]} 33. Qf6 {[%clk
0:00:29.1]} 33... Qxb2 {[%clk 0:00:35]} 34. a4 {[%clk 0:00:29]} 34... Rc2 {[%clk
0:00:26.1]} 35. Re3 {[%clk 0:00:24.3]} 35... Qc1+ {[%clk 0:00:16.6]} 36. Kh2
{[%clk 0:00:24.1]} 36... Qd2 {[%clk 0:00:16.4]} 37. Qh8+ {[%clk 0:00:23.1]}
37... Ke7 {[%clk 0:00:16.3]} 38. Rf3 {[%clk 0:00:23]} 38... Qd6+ {[%clk
0:00:15.9]} 39. g3 {[%clk 0:00:23]} 39... Qd7 {[%clk 0:00:10.5]} 40. Qf6+ {[%clk
0:00:22.3]} 40... Ke8 {[%clk 0:00:11.2]} 41. Qf4 {[%clk 0:00:19.2]} 41... Rd2
{[%clk 0:00:09.6]} 42. Qb8+ {[%clk 0:00:18.7]} 42... Ke7 {[%clk 0:00:10.1]} 43.
Qh8 {[%clk 0:00:18.3]} 43... Rd5 {[%clk 0:00:08.6]} 44. Qf6+ {[%clk 0:00:18.3]}
44... Ke8 {[%clk 0:00:09.1]} 45. Qh8+ {[%clk 0:00:19]} 45... Ke7 {[%clk
0:00:09.7]} 46. Qf6+ {[%clk 0:00:19.2]} 46... Ke8 {[%clk 0:00:06.9]} 47. c4
{[%clk 0:00:19.6]} 47... Rf5 {[%clk 0:00:07.1]} 48. Qh8+ {[%clk 0:00:19.3]}
48... Ke7 {[%clk 0:00:07.3]} 49. Rxf5 {[%clk 0:00:18.6]} 49... gxf5 {[%clk
0:00:07.5]} 50. Qh4+ {[%clk 0:00:19.2]} 50... Kd6 {[%clk 0:00:05.7]} 51. Qf4+
{[%clk 0:00:19.2]} 51... Kc6 {[%clk 0:00:06.2]} 52. Qf3+ {[%clk 0:00:19.6]}
52... Kb6 {[%clk 0:00:07]} 53. Qb3+ {[%clk 0:00:19.8]} 53... Kc7 {[%clk
0:00:06.7]} 54. Kg2 {[%clk 0:00:18.1]} 54... Qd4 {[%clk 0:00:06.9]} 55. Qb5
{[%clk 0:00:17.7]} 55... Qe4+ {[%clk 0:00:07]} 56. Kg1 {[%clk 0:00:17.5]} 56...
Qe1+ {[%clk 0:00:07]} 57. Kg2 {[%clk 0:00:18]} 57... Qe4+ {[%clk 0:00:07.5]} 58.
Kg1 {[%clk 0:00:18.5]} 58... Qd4 {[%clk 0:00:08.3]} 59. Qa5+ {[%clk 0:00:18.1]}
59... Kc8 {[%clk 0:00:08]} 60. Qa6+ {[%clk 0:00:18.3]} 60... Kd8 {[%clk
0:00:08.3]} 61. Qxa7 {[%clk 0:00:17.6]} 61... Qxc4 {[%clk 0:00:08.7]} 62. Qb6+
{[%clk 0:00:17.3]} 62... Ke7 {[%clk 0:00:08.5]} 63. a5 {[%clk 0:00:17.8]} 63...
Qc1+ {[%clk 0:00:06.5]} 64. Kg2 {[%clk 0:00:18.3]} 64... c4 {[%clk 0:00:06]} 65.
Qb7+ {[%clk 0:00:18.7]} 65... Kf6 {[%clk 0:00:06]} 66. a6 {[%clk 0:00:19.4]}
66... c3 {[%clk 0:00:02.3]} 67. a7 {[%clk 0:00:19.8]} 67... c2 {[%clk
0:00:02.3]} 68. a8=Q {[%clk 0:00:20.2]} 68... Qd1 {[%clk 0:00:02.7]} 69. Qh8+
{[%clk 0:00:17.5]} 69... Kg6 {[%clk 0:00:02.7]} 70. Qg8+ {[%clk 0:00:16.8]}
70... Kf6 {[%clk 0:00:02.8]} 71. Qb2+ {[%clk 0:00:13.7]} 71... e5 {[%clk
0:00:01.9]} 72. Qb6+ {[%clk 0:00:13]} 72... Ke7 {[%clk 0:00:02.6]} 73. Qg5+
{[%clk 0:00:12.2]} 73... Kd7 {[%clk 0:00:01.7]} 74. Qgd8# {[%clk 0:00:11.5]} 1-0

[Event "Early-Titled-Tuesday-Blitz-May-14-2024"]
[Site "Chess.com"]
[Date "2024.05.14"]
[Round "1"]
[White "SharapovEvgeny"]
[Black "zozik"]
[Result "1-0"]
[WhiteElo "2651"]
[BlackElo "2328"]
[TimeControl "180+1"]
[EndTime "8:08:46 PDT"]
[Termination "SharapovEvgeny won on time"]

1. e4 {[%clk 0:02:58.4]} 1... e6 {[%clk 0:02:59.1]} 2. d4 {[%clk 0:02:58]} 2...
d5 {[%clk 0:02:59.4]} 3. Nc3 {[%clk 0:02:57.9]} 3... Nf6 {[%clk 0:02:54.4]} 4.
e5 {[%clk 0:02:57.9]} 4... Nfd7 {[%clk 0:02:54.9]} 5. f4 {[%clk 0:02:58.2]} 5...
c5 {[%clk 0:02:55.4]} 6. Nf3 {[%clk 0:02:58.4]} 6... Nc6 {[%clk 0:02:54.9]} 7.
Be3 {[%clk 0:02:58.5]} 7... a6 {[%clk 0:02:49.7]} 8. Qd2 {[%clk 0:02:58.1]} 8...
b5 {[%clk 0:02:43.6]} 9. Nd1 {[%clk 0:02:57.4]} 9... b4 {[%clk 0:02:41.5]} 10.
c3 {[%clk 0:02:56.2]} 10... a5 {[%clk 0:02:37]} 11. Nf2 {[%clk 0:02:55.6]} 11...
Qb6 {[%clk 0:02:36.5]} 12. Be2 {[%clk 0:02:55]} 12... Ba6 {[%clk 0:02:36.2]} 13.
O-O {[%clk 0:02:54]} 13... Bxe2 {[%clk 0:02:35]} 14. Qxe2 {[%clk 0:02:54]} 14...
Qa6 {[%clk 0:02:34.8]} 15. Qc2 {[%clk 0:02:49.8]} 15... cxd4 {[%clk 0:02:29.4]}
16. cxd4 {[%clk 0:02:48.6]} 16... Be7 {[%clk 0:02:29.8]} 17. f5 {[%clk
0:02:47.4]} 17... Rc8 {[%clk 0:02:16.3]} 18. fxe6 {[%clk 0:02:39]} 18... fxe6
{[%clk 0:02:14.3]} 19. Qd2 {[%clk 0:02:33.4]} 19... O-O {[%clk 0:02:10.7]} 20.
Bg5 {[%clk 0:02:30.7]} 20... Qb6 {[%clk 0:01:50.1]} 21. Bxe7 {[%clk 0:02:25.1]}
21... Nxe7 {[%clk 0:01:51]} 22. Rac1 {[%clk 0:02:18.4]} 22... Rc4 {[%clk
0:01:47.9]} 23. b3 {[%clk 0:02:16.6]} 23... Rxc1 {[%clk 0:01:42.3]} 24. Rxc1
{[%clk 0:02:16.1]} 24... Rc8 {[%clk 0:01:36.5]} 25. Rxc8+ {[%clk 0:02:15.3]}
25... Nxc8 {[%clk 0:01:37.4]} 26. Qc2 {[%clk 0:02:09.2]} 26... Ne7 {[%clk
0:01:34.8]} 27. Ng5 {[%clk 0:01:48.9]} 27... g6 {[%clk 0:01:24.3]} 28. Nf3
{[%clk 0:01:39.3]} 28... Qc6 {[%clk 0:01:17.2]} 29. Qxc6 {[%clk 0:01:37.6]}
29... Nxc6 {[%clk 0:01:17.9]} 30. Nd3 {[%clk 0:01:33.2]} 30... h6 {[%clk
0:01:15.8]} 31. h4 {[%clk 0:01:32.7]} 31... Kf7 {[%clk 0:01:15.6]} 32. Kf2
{[%clk 0:01:32.6]} 32... Nb6 {[%clk 0:01:15.9]} 33. Nc5 {[%clk 0:01:28.5]} 33...
Ke7 {[%clk 0:01:13]} 34. Ke3 {[%clk 0:01:27.8]} 34... Nd7 {[%clk 0:01:13.1]} 35.
Nxd7 {[%clk 0:01:18]} 35... Kxd7 {[%clk 0:01:14]} 36. Ne1 {[%clk 0:01:16.8]}
36... Na7 {[%clk 0:01:11.2]} 37. Nd3 {[%clk 0:01:15.8]} 37... Nb5 {[%clk
0:01:11.6]} 38. Nc5+ {[%clk 0:01:15.5]} 38... Ke7 {[%clk 0:01:11.4]} 39. Kd3
{[%clk 0:01:05.1]} 39... Nc3 {[%clk 0:01:04.5]} 40. a4 {[%clk 0:01:03.7]} 40...
Nd1 {[%clk 0:00:43.7]} 41. Kd2 {[%clk 0:01:00.1]} 41... Nf2 {[%clk 0:00:40.2]}
42. Ke2 {[%clk 0:00:58.6]} 42... Ng4 {[%clk 0:00:32.5]} 43. Kf3 {[%clk
0:00:57.6]} 43... h5 {[%clk 0:00:29.7]} 44. Nb7 {[%clk 0:00:51.4]} 44... Nh6
{[%clk 0:00:30.2]} 45. Nxa5 {[%clk 0:00:42.6]} 45... Nf5 {[%clk 0:00:30.8]} 46.
Nc6+ {[%clk 0:00:41.3]} 46... Kd7 {[%clk 0:00:30.4]} 47. Nxb4 {[%clk 0:00:40.7]}
47... Nxd4+ {[%clk 0:00:29.7]} 48. Kf4 {[%clk 0:00:41]} 48... Nxb3 {[%clk
0:00:29.5]} 49. Kg5 {[%clk 0:00:41.3]} 49... Nc5 {[%clk 0:00:22.7]} 50. Nc2
{[%clk 0:00:30.8]} 50... Nxa4 {[%clk 0:00:19.1]} 51. Kxg6 {[%clk 0:00:29]} 51...
Nc3 {[%clk 0:00:18.1]} 52. Kxh5 {[%clk 0:00:27.2]} 52... Ne2 {[%clk 0:00:18.7]}
53. g4 {[%clk 0:00:24.2]} 53... d4 {[%clk 0:00:18.8]} 54. Kg5 {[%clk 0:00:22]}
54... d3 {[%clk 0:00:18.6]} 55. Ne3 {[%clk 0:00:22]} 55... Nd4 {[%clk
0:00:17.9]} 56. h5 {[%clk 0:00:20.4]} 56... Ke7 {[%clk 0:00:17.8]} 57. h6 {[%clk
0:00:20.4]} 57... Kf7 {[%clk 0:00:17.9]} 58. Kf4 {[%clk 0:00:20.5]} 58... d2
{[%clk 0:00:13.6]} 59. Ke4 {[%clk 0:00:20.5]} 59... Ne2 {[%clk 0:00:11.9]} 60.
Kd3 {[%clk 0:00:20.2]} 60... Nf4+ {[%clk 0:00:08.1]} 61. Kxd2 {[%clk 0:00:20.1]}
61... Ng6 {[%clk 0:00:05.4]} 62. Nc4 {[%clk 0:00:18.3]} 62... Nh4 {[%clk
0:00:04.4]} 63. Ke3 {[%clk 0:00:17.6]} 63... Kg6 {[%clk 0:00:05.1]} 64. Kf4
{[%clk 0:00:16.6]} 64... Ng2+ {[%clk 0:00:04.1]} 65. Ke4 {[%clk 0:00:16.4]}
65... Nh4 {[%clk 0:00:03.3]} 66. Ne3 {[%clk 0:00:15.8]} 66... Kg5 {[%clk
0:00:02.7]} 67. h7 {[%clk 0:00:15.7]} 67... Ng6 {[%clk 0:00:03.3]} 68. Nc2
{[%clk 0:00:15.8]} 68... Kh6 {[%clk 0:00:03.4]} 69. Nd4 {[%clk 0:00:15.9]} 69...
Kxh7 {[%clk 0:00:03.1]} 70. Nxe6 {[%clk 0:00:15.8]} 70... Kg8 {[%clk 0:00:03.8]}
71. Nf4 {[%clk 0:00:15.9]} 71... Kf7 {[%clk 0:00:04.2]} 72. Nxg6 {[%clk
0:00:15.8]} 72... Kxg6 {[%clk 0:00:05.1]} 73. Kf4 {[%clk 0:00:16.2]} 1-0

[Event "Early-Titled-Tuesday-Blitz-May-14-2024"]
[Site "Chess.com"]
[Date "2024.05.14"]
[Round "1"]
[White "Niktlt"]
[Black "dontcatchmeifyoucant"]
[Result "1/2-1/2"]
[WhiteElo "2734"]
[BlackElo "2429"]
[TimeControl "180+1"]
[EndTime "8:08:56 PDT"]
[Termination "Game drawn - timeout vs insufficient material"]

1. d4 {[%clk 0:03:00]} 1... Nf6 {[%clk 0:02:57.1]} 2. c4 {[%clk 0:03:00.4]} 2...
e6 {[%clk 0:02:56.6]} 3. Nc3 {[%clk 0:02:59.4]} 3... Bb4 {[%clk 0:02:55.7]} 4.
f3 {[%clk 0:02:59.5]} 4... d5 {[%clk 0:02:53.4]} 5. a3 {[%clk 0:02:55.9]} 5...
Be7 {[%clk 0:02:53.6]} 6. e3 {[%clk 0:02:53.5]} 6... O-O {[%clk 0:02:49.7]} 7.
Bd3 {[%clk 0:02:53.2]} 7... dxc4 {[%clk 0:02:48.9]} 8. Bxc4 {[%clk 0:02:54.1]}
8... c5 {[%clk 0:02:49.5]} 9. Nge2 {[%clk 0:02:52.3]} 9... Nc6 {[%clk
0:02:48.3]} 10. dxc5 {[%clk 0:02:44.3]} 10... Qxd1+ {[%clk 0:02:48.1]} 11. Kxd1
{[%clk 0:02:37.8]} 11... Bxc5 {[%clk 0:02:44.6]} 12. Kc2 {[%clk 0:02:34.1]}
12... a6 {[%clk 0:02:40.5]} 13. b4 {[%clk 0:02:31.8]} 13... Ba7 {[%clk
0:02:39.5]} 14. e4 {[%clk 0:02:29.4]} 14... b5 {[%clk 0:02:38.2]} 15. Bb3 {[%clk
0:02:21.5]} 15... Bb7 {[%clk 0:02:38.2]} 16. Bg5 {[%clk 0:02:20.4]} 16... Rac8
{[%clk 0:02:30.7]} 17. Kb2 {[%clk 0:02:17.9]} 17... h6 {[%clk 0:02:25]} 18. Bxf6
{[%clk 0:02:17.7]} 18... gxf6 {[%clk 0:02:25.3]} 19. Rac1 {[%clk 0:02:16.3]}
19... Ne5 {[%clk 0:02:25.1]} 20. Rhd1 {[%clk 0:02:13.5]} 20... Rfd8 {[%clk
0:02:23.8]} 21. Rxd8+ {[%clk 0:02:01.8]} 21... Rxd8 {[%clk 0:02:23.6]} 22. Rd1
{[%clk 0:02:02.6]} 22... Rxd1 {[%clk 0:02:19.2]} 23. Nxd1 {[%clk 0:01:59.3]}
23... Nd3+ {[%clk 0:02:11.4]} 24. Kc2 {[%clk 0:01:51.6]} 24... Ne1+ {[%clk
0:02:10.5]} 25. Kd2 {[%clk 0:01:46.1]} 25... Nxg2 {[%clk 0:02:08.6]} 26. a4
{[%clk 0:01:29]} 26... Nh4 {[%clk 0:02:01.4]} 27. Ndc3 {[%clk 0:01:02.3]} 27...
Nxf3+ {[%clk 0:02:00]} 28. Kd3 {[%clk 0:01:02.8]} 28... bxa4 {[%clk 0:01:55.2]}
29. Nxa4 {[%clk 0:00:56.4]} 29... Ne5+ {[%clk 0:01:53.5]} 30. Kd2 {[%clk
0:00:55.9]} 30... Bxe4 {[%clk 0:01:53.6]} 31. Kc3 {[%clk 0:00:53.1]} 31... Kf8
{[%clk 0:01:48.8]} 32. Nd4 {[%clk 0:00:48.9]} 32... Ke7 {[%clk 0:01:35.8]} 33.
Bd1 {[%clk 0:00:40]} 33... Nc6 {[%clk 0:01:24.7]} 34. Nb3 {[%clk 0:00:27.3]}
34... Bf2 {[%clk 0:01:16.3]} 35. Nbc5 {[%clk 0:00:19.7]} 35... Be1+ {[%clk
0:01:16.1]} 36. Kc4 {[%clk 0:00:19.6]} 36... Bd5+ {[%clk 0:01:15.9]} 37. Kd3
{[%clk 0:00:19.6]} 37... Nxb4+ {[%clk 0:01:14.8]} 38. Ke2 {[%clk 0:00:19.9]}
38... Bh4 {[%clk 0:01:10.2]} 39. Nb6 {[%clk 0:00:14.4]} 39... a5 {[%clk
0:01:01.5]} 40. Ba4 {[%clk 0:00:11.4]} 40... f5 {[%clk 0:00:56.9]} 41. Nc8+
{[%clk 0:00:09.5]} 41... Kf6 {[%clk 0:00:52.9]} 42. Nd6 {[%clk 0:00:09.8]} 42...
f4 {[%clk 0:00:41]} 43. Nd7+ {[%clk 0:00:09.5]} 43... Ke7 {[%clk 0:00:35.1]} 44.
Nc8+ {[%clk 0:00:08.7]} 44... Kd8 {[%clk 0:00:34.9]} 45. Ncb6 {[%clk 0:00:08.5]}
45... f3+ {[%clk 0:00:35]} 46. Kf1 {[%clk 0:00:08.6]} 46... Be4 {[%clk
0:00:18.9]} 47. Nc5 {[%clk 0:00:07.3]} 47... Bd3+ {[%clk 0:00:19]} 48. Nxd3
{[%clk 0:00:07.6]} 48... Nxd3 {[%clk 0:00:19.9]} 49. Bb5 {[%clk 0:00:07.3]}
49... Nf4 {[%clk 0:00:17.4]} 50. Nc4 {[%clk 0:00:07.7]} 50... Nd5 {[%clk
0:00:15.2]} 51. Bc6 {[%clk 0:00:05.8]} 51... f5 {[%clk 0:00:13.7]} 52. Bxd5
{[%clk 0:00:04.2]} 52... exd5 {[%clk 0:00:14.6]} 53. Nxa5 {[%clk 0:00:05.1]}
53... Kc7 {[%clk 0:00:12.1]} 54. Nb3 {[%clk 0:00:05.4]} 54... Bf6 {[%clk
0:00:10.3]} 55. Kf2 {[%clk 0:00:04.6]} 55... Kd6 {[%clk 0:00:07.8]} 56. Kxf3
{[%clk 0:00:05.2]} 56... Ke5 {[%clk 0:00:08.4]} 57. Nc1 {[%clk 0:00:04.3]} 57...
Bg5 {[%clk 0:00:06]} 58. Ne2 {[%clk 0:00:03.1]} 58... d4 {[%clk 0:00:05.9]} 59.
Ng1 {[%clk 0:00:00.7]} 59... d3 {[%clk 0:00:05.5]} 60. Nh3 {[%clk 0:00:01.4]}
60... Kd4 {[%clk 0:00:04.3]} 61. Kf2 {[%clk 0:00:01.9]} 61... Kc3 {[%clk
0:00:00.9]} 62. Kf3 {[%clk 0:00:02.3]} 62... Kc2 {[%clk 0:00:00.6]} 63. Nf2
{[%clk 0:00:02.5]} 63... d2 {[%clk 0:00:00.5]} 64. h4 {[%clk 0:00:02.5]} 64...
Bxh4 {[%clk 0:00:00.1]} 65. Nd3 {[%clk 0:00:01.8]} 1/2-1/2

[Event "Early-Titled-Tuesday-Blitz-May-14-2024"]
[Site "Chess.com"]
[Date "2024.05.14"]
[Round "1"]
[White "Siemba"]
[Black "vovachesss"]
[Result "0-1"]
[WhiteElo "2484"]
[BlackElo "2843"]
[TimeControl "180+1"]
[EndTime "8:09:00 PDT"]
[Termination "vovachesss won by resignation"]

1. e4 {[%clk 0:03:00.9]} 1... c5 {[%clk 0:02:54.7]} 2. c3 {[%clk 0:02:56.7]}
2... d5 {[%clk 0:02:54.5]} 3. exd5 {[%clk 0:02:45.3]} 3... Qxd5 {[%clk
0:02:55.4]} 4. d4 {[%clk 0:02:45.4]} 4... Nf6 {[%clk 0:02:55.4]} 5. Nf3 {[%clk
0:02:43.3]} 5... e6 {[%clk 0:02:54.9]} 6. Na3 {[%clk 0:02:42.6]} 6... a6 {[%clk
0:02:54.8]} 7. Nc4 {[%clk 0:02:42.2]} 7... Nbd7 {[%clk 0:02:55.1]} 8. a4 {[%clk
0:02:40.1]} 8... b6 {[%clk 0:02:54.7]} 9. Be2 {[%clk 0:02:34.5]} 9... Bb7 {[%clk
0:02:54.4]} 10. O-O {[%clk 0:02:27]} 10... Be7 {[%clk 0:02:45.9]} 11. Bf4 {[%clk
0:02:22.2]} 11... cxd4 {[%clk 0:02:04.7]} 12. cxd4 {[%clk 0:02:20]} 12... O-O
{[%clk 0:02:00.8]} 13. Rc1 {[%clk 0:02:12.1]} 13... Rfc8 {[%clk 0:01:57.2]} 14.
Ne3 {[%clk 0:01:59.8]} 14... Qa2 {[%clk 0:01:23.1]} 15. Bc4 {[%clk 0:01:41.8]}
15... Qxb2 {[%clk 0:01:15.6]} 16. d5 {[%clk 0:01:23.6]} 16... exd5 {[%clk
0:01:03.5]} 17. Nxd5 {[%clk 0:01:24.5]} 17... Bxd5 {[%clk 0:00:54.5]} 18. Bxd5
{[%clk 0:01:25.4]} 18... Nxd5 {[%clk 0:00:27.6]} 19. Qxd5 {[%clk 0:01:26.3]}
19... Nf6 {[%clk 0:00:28]} 20. Qb7 {[%clk 0:01:21.9]} 20... Bc5 {[%clk
0:00:20.4]} 21. Rxc5 {[%clk 0:00:59.9]} 21... Re8 {[%clk 0:00:10.6]} 22. Rc7
{[%clk 0:00:58.6]} 22... Qb4 {[%clk 0:00:08.5]} 23. Be5 {[%clk 0:00:56.3]} 23...
Rab8 {[%clk 0:00:03.4]} 24. Qxa6 {[%clk 0:00:53.4]} 24... Ra8 {[%clk 0:00:03.9]}
25. Qb5 {[%clk 0:00:53.3]} 25... Qxa4 {[%clk 0:00:04]} 26. Qxa4 {[%clk 0:00:53]}
26... Rxa4 {[%clk 0:00:04.9]} 27. Bxf6 {[%clk 0:00:53.6]} 27... gxf6 {[%clk
0:00:05.8]} 28. Rb7 {[%clk 0:00:54.2]} 28... Rb4 {[%clk 0:00:06.2]} 29. h3
{[%clk 0:00:53.1]} 29... Re2 {[%clk 0:00:05.8]} 30. Kh2 {[%clk 0:00:48.2]} 30...
Kg7 {[%clk 0:00:05.7]} 31. Kg3 {[%clk 0:00:47.1]} 31... f5 {[%clk 0:00:03.2]}
32. Nh4 {[%clk 0:00:44.2]} 32... Kf6 {[%clk 0:00:02.9]} 33. Nf3 {[%clk 0:00:41]}
33... Reb2 {[%clk 0:00:02.2]} 34. Rc1 {[%clk 0:00:40.9]} 34... f4+ {[%clk
0:00:01.7]} 35. Kh2 {[%clk 0:00:36.8]} 35... Rxf2 {[%clk 0:00:02.6]} 36. Rc6+
{[%clk 0:00:36.8]} 36... Kf5 {[%clk 0:00:02.4]} 37. Rbxb6 {[%clk 0:00:36.2]}
37... Rxb6 {[%clk 0:00:01.5]} 38. Rxb6 {[%clk 0:00:36.4]} 38... f6 {[%clk
0:00:02]} 39. Rb7 {[%clk 0:00:34.7]} 39... h5 {[%clk 0:00:01.8]} 40. Rh7 {[%clk
0:00:34.3]} 40... Kg6 {[%clk 0:00:02.4]} 41. Rh8 {[%clk 0:00:34.4]} 41... Ra2
{[%clk 0:00:03.1]} 42. h4 {[%clk 0:00:30.5]} 42... Rb2 {[%clk 0:00:03.1]} 43.
Kh3 {[%clk 0:00:31.2]} 43... Rb1 {[%clk 0:00:03.3]} 44. Rg8+ {[%clk 0:00:31.8]}
44... Kh7 {[%clk 0:00:02.9]} 45. Rc8 {[%clk 0:00:31.9]} 45... Rh1+ {[%clk
0:00:01.9]} 46. Nh2 {[%clk 0:00:31]} 46... Kg6 {[%clk 0:00:02.5]} 47. Rc4 {[%clk
0:00:27.4]} 47... Kf5 {[%clk 0:00:02.8]} 48. g3 {[%clk 0:00:23.4]} 48... fxg3
{[%clk 0:00:03.7]} 49. Kxg3 {[%clk 0:00:24.3]} 49... Rg1+ {[%clk 0:00:03.8]} 50.
Kh3 {[%clk 0:00:24.3]} 50... Ra1 {[%clk 0:00:03.9]} 51. Nf3 {[%clk 0:00:24.4]}
51... Ra3 {[%clk 0:00:04]} 52. Kg3 {[%clk 0:00:24.3]} 52... Rb3 {[%clk
0:00:04.5]} 53. Rc5+ {[%clk 0:00:24.8]} 53... Kg6 {[%clk 0:00:04.8]} 54. Rd5
{[%clk 0:00:25.1]} 54... Ra3 {[%clk 0:00:05.1]} 55. Kf4 {[%clk 0:00:25.4]} 55...
Ra4+ {[%clk 0:00:05.2]} 56. Rd4 {[%clk 0:00:25.9]} 56... Ra5 {[%clk 0:00:04.7]}
57. Rd6 {[%clk 0:00:23.4]} 57... Rf5+ {[%clk 0:00:04.8]} 58. Kg3 {[%clk
0:00:22.9]} 58... Ra5 {[%clk 0:00:05.7]} 59. Nd4 {[%clk 0:00:20.9]} 59... Ra3+
{[%clk 0:00:05.5]} 60. Kf4 {[%clk 0:00:20.9]} 60... Ra1 {[%clk 0:00:05.2]} 61.
Ke4 {[%clk 0:00:14.2]} 61... Rh1 {[%clk 0:00:04.2]} 62. Nf3 {[%clk 0:00:14.2]}
62... Ra1 {[%clk 0:00:02.2]} 63. Rd2 {[%clk 0:00:13.2]} 63... Ra4+ {[%clk
0:00:01.4]} 64. Nd4 {[%clk 0:00:12.4]} 64... Ra3 {[%clk 0:00:02.3]} 65. Rg2+
{[%clk 0:00:12.7]} 65... Kf7 {[%clk 0:00:02.5]} 66. Kf4 {[%clk 0:00:10.8]} 66...
Ra4 {[%clk 0:00:02.7]} 67. Rd2 {[%clk 0:00:11]} 67... Kg6 {[%clk 0:00:02.5]} 68.
Ke4 {[%clk 0:00:11.2]} 68... Kf7 {[%clk 0:00:02.5]} 69. Kf5 {[%clk 0:00:10.2]}
69... Ra5+ {[%clk 0:00:02.9]} 70. Kf4 {[%clk 0:00:09.9]} 70... Ra4 {[%clk
0:00:03.3]} 71. Kf3 {[%clk 0:00:10.3]} 71... Kg6 {[%clk 0:00:03.6]} 72. Rd3
{[%clk 0:00:10.9]} 72... Kf7 {[%clk 0:00:03.8]} 73. Kg3 {[%clk 0:00:11]} 73...
Kg6 {[%clk 0:00:04.2]} 74. Nf3 {[%clk 0:00:11.4]} 74... Rg4+ {[%clk 0:00:04.2]}
75. Kh3 {[%clk 0:00:11.5]} 75... Ra4 {[%clk 0:00:05.1]} 76. Rd6 {[%clk
0:00:11.4]} 76... Kf5 {[%clk 0:00:05]} 77. Rd5+ {[%clk 0:00:11.4]} 77... Ke4
{[%clk 0:00:04.1]} 78. Rxh5 {[%clk 0:00:09.5]} 78... Kxf3 {[%clk 0:00:03.9]} 79.
Rf5+ {[%clk 0:00:10.2]} 79... Rf4 {[%clk 0:00:04.4]} 80. Rxf6 {[%clk 0:00:11]}
80... Rxf6 {[%clk 0:00:04.4]} 81. h5 {[%clk 0:00:11.5]} 81... Kf4 {[%clk
0:00:04.3]} 82. Kh4 {[%clk 0:00:12.1]} 82... Rh6 {[%clk 0:00:05]} 83. Kh3 {[%clk
0:00:12.4]} 83... Rxh5+ {[%clk 0:00:05.9]} 84. Kg2 {[%clk 0:00:13]} 84... Rh4
{[%clk 0:00:06.2]} 85. Kf2 {[%clk 0:00:13.9]} 85... Rh2+ {[%clk 0:00:06.5]} 0-1